Department family,Entity,Date,Expense type,Expense area,Supplier,Transaction number,Amount,VAT registration number
Department for Business Energy and Industrial Strategy,Intellectual Property Office,06/08/2020,Pay Costs,Patent Directorate,Acorn Recruitment Ltd,954301,673.1,Not Applicable
Department for Business Energy and Industrial Strategy,Intellectual Property Office,06/08/2020,Pay Costs,Patent Directorate,Acorn Recruitment Ltd,954302,575.42,Not Applicable
Department for Business Energy and Industrial Strategy,Intellectual Property Office,19/08/2020,Pay Costs,Patent Directorate,Acorn Recruitment Ltd,955309,673.1,Not Applicable
Department for Business Energy and Industrial Strategy,Intellectual Property Office,19/08/2020,Pay Costs,Patent Directorate,Acorn Recruitment Ltd,955310,575.42,Not Applicable
Department for Business Energy and Industrial Strategy,Intellectual Property Office,26/08/2020,Pay Costs,Patent Directorate,Acorn Recruitment Ltd,955836,673.1,Not Applicable
Department for Business Energy and Industrial Strategy,Intellectual Property Office,13/08/2020,Legal & Hearings,Trade Mark Directorate,AL Michaels,51263,720,Not Applicable
Department for Business Energy and Industrial Strategy,Intellectual Property Office,14/08/2020,Telecoms,IT Directorate,British  Telecom,M223SI,"1,399.99",Not Applicable
Department for Business Energy and Industrial Strategy,Intellectual Property Office,27/08/2020,Telecoms,IT Directorate,British  Telecom,VP02239170M22401,"1,600.05",Not Applicable
Department for Business Energy and Industrial Strategy,Intellectual Property Office,04/08/2020,Miscellaneous Expenses General,People Places & Serv Directorate,Capital Law LLP,60011735,741,Not Applicable
Department for Business Energy and Industrial Strategy,Intellectual Property Office,20/08/2020,Supporting UK Business,Copyright and Enforcement Directorate,City of London Police,4276207,"540,165.60",Not Applicable
Department for Business Energy and Industrial Strategy,Intellectual Property Office,05/08/2020,Staff Costs,People Places & Serv Directorate,Computeraid Ltd,22329,"1,602.00",Not Applicable
Department for Business Energy and Industrial Strategy,Intellectual Property Office,04/08/2020,Staff Costs,People Places & Serv Directorate,Computeraid Ltd,22330,"1,068.00",Not Applicable
Department for Business Energy and Industrial Strategy,Intellectual Property Office,04/08/2020,Staff Costs,People Places & Serv Directorate,Computeraid Ltd,22331,"4,890.00",Not Applicable
Department for Business Energy and Industrial Strategy,Intellectual Property Office,04/08/2020,Staff Costs,People Places & Serv Directorate,Computeraid Ltd,22332,978,Not Applicable
Department for Business Energy and Industrial Strategy,Intellectual Property Office,05/08/2020,Staff Costs,People Places & Serv Directorate,Computeraid Ltd,22333,"1,788.00",Not Applicable
Department for Business Energy and Industrial Strategy,Intellectual Property Office,05/08/2020,Staff Costs,People Places & Serv Directorate,Computeraid Ltd,22334,"1,068.00",Not Applicable
Department for Business Energy and Industrial Strategy,Intellectual Property Office,05/08/2020,Staff Costs,People Places & Serv Directorate,Computeraid Ltd,22335,"1,068.00",Not Applicable
Department for Business Energy and Industrial Strategy,Intellectual Property Office,05/08/2020,Staff Costs,People Places & Serv Directorate,Computeraid Ltd,22336,"2,322.00",Not Applicable
Department for Business Energy and Industrial Strategy,Intellectual Property Office,05/08/2020,Staff Costs,People Places & Serv Directorate,Computeraid Ltd,22337,"1,068.00",Not Applicable
Department for Business Energy and Industrial Strategy,Intellectual Property Office,25/08/2020,Accommodation,People Places & Serv Directorate,Corona Energy,15313482,"3,036.92",Not Applicable
Department for Business Energy and Industrial Strategy,Intellectual Property Office,25/08/2020,Accommodation,People Places & Serv Directorate,Corona Energy,15314751,"2,329.94",Not Applicable
Department for Business Energy and Industrial Strategy,Intellectual Property Office,12/08/2020,Accommodation,People Places & Serv Directorate,Corona Energy,15431989,952.44,Not Applicable
Department for Business Energy and Industrial Strategy,Intellectual Property Office,12/08/2020,Accommodation,People Places & Serv Directorate,Corona Energy,15432041,"1,167.77",Not Applicable
Department for Business Energy and Industrial Strategy,Intellectual Property Office,06/08/2020,Supporting UK Business,Innovation Directorate,Dehns,436409,"2,500.00",Not Applicable
Department for Business Energy and Industrial Strategy,Intellectual Property Office,12/08/2020,Postage & Delivery Costs,People Places & Serv Directorate,DHL International (UK) Ltd,BRSR003798100,733.06,Not Applicable
Department for Business Energy and Industrial Strategy,Intellectual Property Office,19/08/2020,Postage & Delivery Costs,People Places & Serv Directorate,DHL International (UK) Ltd,BRSR003817141,"4,684.54",Not Applicable
Department for Business Energy and Industrial Strategy,Intellectual Property Office,04/08/2020,Pay Costs,Projects,Hays Specialist Recruitment,1010737394,"1,079.10",Not Applicable
Department for Business Energy and Industrial Strategy,Intellectual Property Office,07/08/2020,Pay Costs,Projects,Hays Specialist Recruitment,1010741411,"1,088.59",Not Applicable
Department for Business Energy and Industrial Strategy,Intellectual Property Office,14/08/2020,Pay Costs,Projects,Hays Specialist Recruitment,1010755736,"1,098.08",Not Applicable
Department for Business Energy and Industrial Strategy,Intellectual Property Office,20/08/2020,Pay Costs,Projects,Hays Specialist Recruitment,1010767926,"1,095.79",Not Applicable
Department for Business Energy and Industrial Strategy,Intellectual Property Office,28/08/2020,Pay Costs,Projects,Hays Specialist Recruitment,1010778535,"1,081.42",Not Applicable
Department for Business Energy and Industrial Strategy,Intellectual Property Office,26/08/2020,Miscellaneous Expenses General,People Places & Serv Directorate,Insight Direct (UK) Ltd,4955157,"1,095.00",Not Applicable
Department for Business Energy and Industrial Strategy,Intellectual Property Office,26/08/2020,Information Technology,IT Directorate,Insight Direct (UK) Ltd,4955175,"3,750.00",Not Applicable
Department for Business Energy and Industrial Strategy,Intellectual Property Office,07/08/2020,Supporting UK Business,Innovation Directorate,IP Pragmatics,2540,"2,500.00",Not Applicable
Department for Business Energy and Industrial Strategy,Intellectual Property Office,07/08/2020,Postage & Delivery Costs,People Places & Serv Directorate,Zenith,237411,"1,073.52",Not Applicable
Department for Business Energy and Industrial Strategy,Intellectual Property Office,07/08/2020,Legal & Hearings,Trade Mark Directorate,Marten Walsh Cherer Ltd,111486,753,Not Applicable
Department for Business Energy and Industrial Strategy,Intellectual Property Office,06/08/2020,Staff Costs,People Places & Serv Directorate,MyCSP Ltd,17308,"1,440.00",Not Applicable
Department for Business Energy and Industrial Strategy,Intellectual Property Office,05/08/2020,Postage & Delivery Costs,People Places & Serv Directorate,Quadient UK Limited,9000335-04AUG20,"10,000.00",Not Applicable
Department for Business Energy and Industrial Strategy,Intellectual Property Office,11/08/2020,Postage & Delivery Costs,People Places & Serv Directorate,Quadient UK Limited,92688002,"1,059.44",Not Applicable
Department for Business Energy and Industrial Strategy,Intellectual Property Office,17/08/2020,Pay Costs,People Places & Serv Directorate,C2W Support,34419,649.99,Not Applicable
Department for Business Energy and Industrial Strategy,Intellectual Property Office,05/08/2020,Pay Costs,People Places & Serv Directorate,Park Retail Ltd t/a Love2reward,54524754,"3,895.50",Not Applicable
Department for Business Energy and Industrial Strategy,Intellectual Property Office,05/08/2020,Supporting UK Business,Patent Directorate,Park Retail Ltd t/a Love2reward,54524754,200.9,Not Applicable
Department for Business Energy and Industrial Strategy,Intellectual Property Office,11/08/2020,Pay Costs,People Places & Serv Directorate,Park Retail Ltd t/a Love2reward,54540381,"2,572.50",Not Applicable
Department for Business Energy and Industrial Strategy,Intellectual Property Office,18/08/2020,Pay Costs,People Places & Serv Directorate,Park Retail Ltd t/a Love2reward,54557864,"1,866.90",Not Applicable
Department for Business Energy and Industrial Strategy,Intellectual Property Office,25/08/2020,Pay Costs,People Places & Serv Directorate,Park Retail Ltd t/a Love2reward,54574234,"2,753.80",Not Applicable
Department for Business Energy and Industrial Strategy,Intellectual Property Office,20/08/2020,Information Technology,IT Directorate,QA Ltd,QACC000737,"-1,044.00",Not Applicable
Department for Business Energy and Industrial Strategy,Intellectual Property Office,07/08/2020,Information Technology,IT Directorate,QA Ltd,QACI005783,"28,884.00",Not Applicable
Department for Business Energy and Industrial Strategy,Intellectual Property Office,04/08/2020,Information Technology,IT Directorate,QA Ltd,QACI005784,"6,048.00",Not Applicable
Department for Business Energy and Industrial Strategy,Intellectual Property Office,10/08/2020,Information Technology,IT Directorate,QA Ltd,QACI005901,"7,560.00",Not Applicable
Department for Business Energy and Industrial Strategy,Intellectual Property Office,12/08/2020,Information Technology,IT Directorate,QA Ltd,QACI005902,"35,148.00",Not Applicable
Department for Business Energy and Industrial Strategy,Intellectual Property Office,20/08/2020,Information Technology,IT Directorate,QA Ltd,QACI005958,"33,756.00",Not Applicable
Department for Business Energy and Industrial Strategy,Intellectual Property Office,10/08/2020,Postage & Delivery Costs,People Places & Serv Directorate,Royal Mail,9061258615,"1,306.74",Not Applicable
Department for Business Energy and Industrial Strategy,Intellectual Property Office,19/08/2020,Postage & Delivery Costs,People Places & Serv Directorate,Royal Mail,9061374900,"1,212.34",Not Applicable
Department for Business Energy and Industrial Strategy,Intellectual Property Office,25/08/2020,Accommodation,People Places & Serv Directorate,Senator International Ltd,S01598339,889.14,Not Applicable
Department for Business Energy and Industrial Strategy,Intellectual Property Office,25/08/2020,Accommodation,People Places & Serv Directorate,Senator International Ltd,S01603044,730,Not Applicable
Department for Business Energy and Industrial Strategy,Intellectual Property Office,25/08/2020,Accommodation,People Places & Serv Directorate,Senator International Ltd,S01603045,742.9,Not Applicable
Department for Business Energy and Industrial Strategy,Intellectual Property Office,14/08/2020,Accommodation,People Places & Serv Directorate,Senator International Ltd,S01605622,534.01,Not Applicable
Department for Business Energy and Industrial Strategy,Intellectual Property Office,14/08/2020,Information Technology,IT Directorate,Specialist Computer Centres Plc,OP/M792971,"18,348.18",Not Applicable
Department for Business Energy and Industrial Strategy,Intellectual Property Office,14/08/2020,Information Technology,IT Directorate,Specialist Computer Centres Plc,OP/M792972,"3,392.38",Not Applicable
Department for Business Energy and Industrial Strategy,Intellectual Property Office,14/08/2020,Information Technology,IT Directorate,Specialist Computer Centres Plc,OP/M792974,"2,292.05",Not Applicable
Department for Business Energy and Industrial Strategy,Intellectual Property Office,14/08/2020,Information Technology,IT Directorate,Specialist Computer Centres Plc,OP/M792975,"2,035.10",Not Applicable
Department for Business Energy and Industrial Strategy,Intellectual Property Office,05/08/2020,Information Technology,IT Directorate,Specialist Computer Centres Plc,OP/M802899,"11,602.56",Not Applicable
Department for Business Energy and Industrial Strategy,Intellectual Property Office,10/08/2020,Other FA at Cost,IT Directorate,Specialist Computer Centres Plc,OP/M805992,"69,825.46",Not Applicable
Department for Business Energy and Industrial Strategy,Intellectual Property Office,25/08/2020,Information Technology,IT Directorate,Specialist Computer Centres Plc,OP/M807927,"18,348.18",Not Applicable
Department for Business Energy and Industrial Strategy,Intellectual Property Office,25/08/2020,Information Technology,IT Directorate,Specialist Computer Centres Plc,OP/M807928,"3,383.86",Not Applicable
Department for Business Energy and Industrial Strategy,Intellectual Property Office,25/08/2020,Information Technology,IT Directorate,Specialist Computer Centres Plc,OP/M807929,"14,621.74",Not Applicable
Department for Business Energy and Industrial Strategy,Intellectual Property Office,25/08/2020,Information Technology,IT Directorate,Specialist Computer Centres Plc,OP/M807930,"2,292.05",Not Applicable
Department for Business Energy and Industrial Strategy,Intellectual Property Office,25/08/2020,Information Technology,IT Directorate,Specialist Computer Centres Plc,OP/M807931,"2,035.10",Not Applicable
Department for Business Energy and Industrial Strategy,Intellectual Property Office,25/08/2020,Information Technology,IT Directorate,Specialist Computer Centres Plc,OP/M807932,"1,617.07",Not Applicable
Department for Business Energy and Industrial Strategy,Intellectual Property Office,25/08/2020,Information Technology,IT Directorate,Specialist Computer Centres Plc,OP/M807935,"1,227.86",Not Applicable
Department for Business Energy and Industrial Strategy,Intellectual Property Office,25/08/2020,Information Technology,IT Directorate,Specialist Computer Centres Plc,OP/M807935,"3,332.77",Not Applicable
Department for Business Energy and Industrial Strategy,Intellectual Property Office,25/08/2020,Information Technology,IT Directorate,Specialist Computer Centres Plc,OP/M807936,"1,798.55",Not Applicable
Department for Business Energy and Industrial Strategy,Intellectual Property Office,25/08/2020,Information Technology,IT Directorate,Specialist Computer Centres Plc,OP/M807937,533.58,Not Applicable
Department for Business Energy and Industrial Strategy,Intellectual Property Office,27/08/2020,Miscellaneous Expenses General,People Places & Serv Directorate,Stonewall Equality Ltd,61861,"3,000.00",Not Applicable
Department for Business Energy and Industrial Strategy,Intellectual Property Office,12/08/2020,Accommodation,People Places & Serv Directorate,Thomas Waste Management Ltd,252949,"1,072.08",Not Applicable
Department for Business Energy and Industrial Strategy,Intellectual Property Office,07/08/2020,Accommodation,People Places & Serv Directorate,Thomas Waste Management Ltd,253552,742.56,Not Applicable
Department for Business Energy and Industrial Strategy,Intellectual Property Office,13/08/2020,Office Machinery,People Places & Serv Directorate,Total Print Finishing Services Ltd,41734,504,Not Applicable
Department for Business Energy and Industrial Strategy,Intellectual Property Office,04/08/2020,Accommodation,People Places & Serv Directorate,Total Security Protection Ltd,204316,"1,364.57",Not Applicable
Department for Business Energy and Industrial Strategy,Intellectual Property Office,04/08/2020,Accommodation,People Places & Serv Directorate,Total Security Protection Ltd,204319,"3,396.92",Not Applicable
Department for Business Energy and Industrial Strategy,Intellectual Property Office,11/08/2020,Pay Costs,People Places & Serv Directorate,Trustmarque Solutions Ltd,2303744,"23,424.00",Not Applicable
Department for Business Energy and Industrial Strategy,Intellectual Property Office,24/08/2020,Information Technology,IT Directorate,Trustmarque Solutions Ltd,2304177,"5,880.00",Not Applicable
Department for Business Energy and Industrial Strategy,Intellectual Property Office,06/08/2020,Travel & Subsistence,People Places & Serv Directorate,Veezu Ltd T/A Dragon Taxis (Newpor,39243,"1,713.36",Not Applicable
Department for Business Energy and Industrial Strategy,Intellectual Property Office,06/08/2020,Travel & Subsistence,People Places & Serv Directorate,Veezu Ltd T/A Dragon Taxis (Newpor,39243,136.2,Not Applicable
Department for Business Energy and Industrial Strategy,Intellectual Property Office,06/08/2020,Travel & Subsistence,Projects,Veezu Ltd T/A Dragon Taxis (Newpor,39243,15.6,Not Applicable
Department for Business Energy and Industrial Strategy,Intellectual Property Office,12/08/2020,Supporting UK Business,Innovation Directorate,Withers &  Rogers LLP,650135KS,"2,500.00",Not Applicable
Department for Business Energy and Industrial Strategy,Intellectual Property Office,07/08/2020,Office Machinery,People Places & Serv Directorate,Xerox (UK) Ltd,1610286005,772.46,Not Applicable
Department for Business Energy and Industrial Strategy,Intellectual Property Office,05/08/2020,Office Supplies,People Places & Serv Directorate,Antalis Limited,9372118,452.59,Not Applicable
Department for Business Energy and Industrial Strategy,Intellectual Property Office,05/08/2020,Office Supplies,People Places & Serv Directorate,Antalis Limited,9372118,"2,092.03",Not Applicable
Department for Business Energy and Industrial Strategy,Intellectual Property Office,18/08/2020,Supporting UK Business,Innovation Directorate,Marks & Clerk LLP,5194567,"2,500.00",Not Applicable
Department for Business Energy and Industrial Strategy,Intellectual Property Office,27/08/2020,Telecoms,IT Directorate,Vodafone Corporate Ltd,95745109,"3,100.70",Not Applicable
Department for Business Energy and Industrial Strategy,Intellectual Property Office,25/08/2020,Staff Costs,People Places & Serv Directorate,Whitehall & Industry Group,2200094,594,Not Applicable
Department for Business Energy and Industrial Strategy,Intellectual Property Office,25/08/2020,Supporting UK Business,International Policy Directorate,FOREIGN & COMMONWEALTH OFFICE,1121185,"31,215.75",Not Applicable
Department for Business Energy and Industrial Strategy,Intellectual Property Office,28/08/2020,Supporting UK Business,International Policy Directorate,FOREIGN & COMMONWEALTH OFFICE,1126911,"51,506.95",Not Applicable
Department for Business Energy and Industrial Strategy,Intellectual Property Office,18/08/2020,Supporting UK Business,International Policy Directorate,FOREIGN & COMMONWEALTH OFFICE,1127524,"6,422.09",Not Applicable
Department for Business Energy and Industrial Strategy,Intellectual Property Office,28/08/2020,Supporting UK Business,International Policy Directorate,FOREIGN & COMMONWEALTH OFFICE,1127913,"43,762.85",Not Applicable
Department for Business Energy and Industrial Strategy,Intellectual Property Office,28/08/2020,Supporting UK Business,International Policy Directorate,FOREIGN & COMMONWEALTH OFFICE,1128064,"-3,019.56",Not Applicable
Department for Business Energy and Industrial Strategy,Intellectual Property Office,06/08/2020,Information Technology,Projects,Advanced Business Solutions,ARBK/99054920,"8,415.00",Not Applicable
Department for Business Energy and Industrial Strategy,Intellectual Property Office,06/08/2020,Information Technology,Finance Directorate,Advanced Business Solutions,ARBK/99054921,"1,530.36",Not Applicable
Department for Business Energy and Industrial Strategy,Intellectual Property Office,06/08/2020,Information Technology,Projects,Advanced Business Solutions,ARBK/99054973,"13,770.00",Not Applicable
Department for Business Energy and Industrial Strategy,Intellectual Property Office,04/08/2020,Postage & Delivery Costs,People Places & Serv Directorate,RICO LOGISTICS LTD,SINRLLFS00264801,"1,344.38",Not Applicable
Department for Business Energy and Industrial Strategy,Intellectual Property Office,21/08/2020,Postage & Delivery Costs,People Places & Serv Directorate,RICO LOGISTICS LTD,SINRLLFS00266809,"1,984.02",Not Applicable
Department for Business Energy and Industrial Strategy,Intellectual Property Office,26/08/2020,Miscellaneous Expenses General,IT Directorate,Open Connections Solutions Ltd,320105,"3,110.40",Not Applicable
Department for Business Energy and Industrial Strategy,Intellectual Property Office,13/08/2020,Supporting UK Business,Innovation Directorate,LAWRIE INTELLECTUAL PROPERTY,117702,"2,500.00",Not Applicable
Department for Business Energy and Industrial Strategy,Intellectual Property Office,17/08/2020,Supporting UK Business,Innovation Directorate,INNGOT LTD,R2007/2,"2,500.00",Not Applicable
Department for Business Energy and Industrial Strategy,Intellectual Property Office,20/08/2020,Staff Costs,People Places & Serv Directorate,Wales Quality Centre,11891,774,Not Applicable
Department for Business Energy and Industrial Strategy,Intellectual Property Office,06/08/2020,Pay Costs,Projects,Accountancy Recruitment Wales,999189,"2,092.50",Not Applicable
Department for Business Energy and Industrial Strategy,Intellectual Property Office,06/08/2020,Pay Costs,Finance Directorate,Accountancy Recruitment Wales,999190,728.62,Not Applicable
Department for Business Energy and Industrial Strategy,Intellectual Property Office,06/08/2020,Pay Costs,Projects,Accountancy Recruitment Wales,999191,"2,092.50",Not Applicable
Department for Business Energy and Industrial Strategy,Intellectual Property Office,07/08/2020,Pay Costs,Finance Directorate,Accountancy Recruitment Wales,999192,"1,003.70",Not Applicable
Department for Business Energy and Industrial Strategy,Intellectual Property Office,06/08/2020,Pay Costs,Finance Directorate,Accountancy Recruitment Wales,999193,"2,115.76",Not Applicable
Department for Business Energy and Industrial Strategy,Intellectual Property Office,13/08/2020,Pay Costs,Finance Directorate,Accountancy Recruitment Wales,999196,"1,202.94",Not Applicable
Department for Business Energy and Industrial Strategy,Intellectual Property Office,13/08/2020,Pay Costs,Finance Directorate,Accountancy Recruitment Wales,999197,"2,176.20",Not Applicable
Department for Business Energy and Industrial Strategy,Intellectual Property Office,19/08/2020,Pay Costs,Finance Directorate,Accountancy Recruitment Wales,999201,"2,176.20",Not Applicable
Department for Business Energy and Industrial Strategy,Intellectual Property Office,19/08/2020,Pay Costs,Finance Directorate,Accountancy Recruitment Wales,999202,694.38,Not Applicable
Department for Business Energy and Industrial Strategy,Intellectual Property Office,19/08/2020,Pay Costs,Projects,Accountancy Recruitment Wales,999203,"2,143.66",Not Applicable
Department for Business Energy and Industrial Strategy,Intellectual Property Office,26/08/2020,Pay Costs,Finance Directorate,Accountancy Recruitment Wales,999205,716.39,Not Applicable
Department for Business Energy and Industrial Strategy,Intellectual Property Office,26/08/2020,Pay Costs,Finance Directorate,Accountancy Recruitment Wales,999206,"1,269.46",Not Applicable
Department for Business Energy and Industrial Strategy,Intellectual Property Office,26/08/2020,Pay Costs,Projects,Accountancy Recruitment Wales,999207,"1,822.80",Not Applicable
Department for Business Energy and Industrial Strategy,Intellectual Property Office,12/08/2020,Information Technology,IT Directorate,Experian Ltd,HEX67000701128,"133,470.67",Not Applicable
Department for Business Energy and Industrial Strategy,Intellectual Property Office,06/08/2020,Postage & Delivery Costs,People Places & Serv Directorate,CitySprint (UK) Ltd,3402449,"5,921.64",Not Applicable
Department for Business Energy and Industrial Strategy,Intellectual Property Office,12/08/2020,Accommodation,People Places & Serv Directorate,EDF ENERGY,8151927,"22,537.41",Not Applicable
Department for Business Energy and Industrial Strategy,Intellectual Property Office,12/08/2020,Accommodation,People Places & Serv Directorate,EDF ENERGY,8156138,987.92,Not Applicable
Department for Business Energy and Industrial Strategy,Intellectual Property Office,06/08/2020,Supporting UK Business,Copyright and Enforcement Directorate,DAN ANTHONY PRESENTATIONS LTD,221,800,Not Applicable
Department for Business Energy and Industrial Strategy,Intellectual Property Office,18/08/2020,Marketing & Publicity,Innovation Directorate,DAN ANTHONY PRESENTATIONS LTD,222,800,Not Applicable
Department for Business Energy and Industrial Strategy,Intellectual Property Office,04/08/2020,Information Technology,IT Directorate,Bytes Software Services Ltd,658164,"22,925.90",Not Applicable
Department for Business Energy and Industrial Strategy,Intellectual Property Office,12/08/2020,Information Technology,IT Directorate,Bytes Software Services Ltd,658778,"2,072.35",Not Applicable
Department for Business Energy and Industrial Strategy,Intellectual Property Office,13/08/2020,Staff Costs,People Places & Serv Directorate,Sodexo Motivation Solutions UK Ltd,3675015,"5,460.10",Not Applicable
Department for Business Energy and Industrial Strategy,Intellectual Property Office,13/08/2020,Staff Costs,People Places & Serv Directorate,Sodexo Motivation Solutions UK Ltd,3675082,"5,265.44",Not Applicable
Department for Business Energy and Industrial Strategy,Intellectual Property Office,26/08/2020,Telecoms,IT Directorate,EE Ltd,1285272468,"1,012.30",Not Applicable
Department for Business Energy and Industrial Strategy,Intellectual Property Office,26/08/2020,Telecoms,IT Directorate,EE Ltd,1285377874,"1,234.38",Not Applicable
Department for Business Energy and Industrial Strategy,Intellectual Property Office,26/08/2020,Telecoms,IT Directorate,EE Ltd,1285422286,975.95,Not Applicable
Department for Business Energy and Industrial Strategy,Intellectual Property Office,26/08/2020,Telecoms,IT Directorate,EE Ltd,1285459554,840.23,Not Applicable
Department for Business Energy and Industrial Strategy,Intellectual Property Office,26/08/2020,Telecoms,IT Directorate,EE Ltd,1285495912,954.22,Not Applicable
Department for Business Energy and Industrial Strategy,Intellectual Property Office,26/08/2020,Telecoms,IT Directorate,EE Ltd,1285531598,"1,017.66",Not Applicable
Department for Business Energy and Industrial Strategy,Intellectual Property Office,26/08/2020,Telecoms,IT Directorate,EE Ltd,1285566914,"1,258.75",Not Applicable
Department for Business Energy and Industrial Strategy,Intellectual Property Office,26/08/2020,Telecoms,IT Directorate,EE Ltd,1285601660,"1,244.02",Not Applicable
Department for Business Energy and Industrial Strategy,Intellectual Property Office,26/08/2020,Telecoms,IT Directorate,EE Ltd,1285636030,"1,253.36",Not Applicable
Department for Business Energy and Industrial Strategy,Intellectual Property Office,26/08/2020,Telecoms,IT Directorate,EE Ltd,1285669814,"1,227.12",Not Applicable
Department for Business Energy and Industrial Strategy,Intellectual Property Office,26/08/2020,Telecoms,IT Directorate,EE Ltd,1285703176,"1,193.36",Not Applicable
Department for Business Energy and Industrial Strategy,Intellectual Property Office,26/08/2020,Telecoms,IT Directorate,EE Ltd,C2040024222,"-11,061.36",Not Applicable
Department for Business Energy and Industrial Strategy,Intellectual Property Office,20/08/2020,Legal & Hearings,Trade Mark Directorate,Government Legal Department,481228,"1,165.32",Not Applicable
Department for Business Energy and Industrial Strategy,Intellectual Property Office,13/08/2020,Legal & Hearings,Trade Mark Directorate,Government Legal Department,483214,"6,788.94",Not Applicable
Department for Business Energy and Industrial Strategy,Intellectual Property Office,10/08/2020,Telecoms,IT Directorate,Personal expenses,UK10/072020/2106,"15,833.87",Not Applicable
Department for Business Energy and Industrial Strategy,Intellectual Property Office,28/08/2020,Office Machinery,People Places & Serv Directorate,Midshire Business Systems (Norther,8070847275,"2,301.19",Not Applicable
Department for Business Energy and Industrial Strategy,Intellectual Property Office,04/08/2020,Information Technology,Finance Directorate,Personal expenses,UKINV-196236,"3,904.42",Not Applicable
Department for Business Energy and Industrial Strategy,Intellectual Property Office,28/08/2020,Information Technology,IT Directorate,Search Technology,13682,"7,110.09",Not Applicable
Department for Business Energy and Industrial Strategy,Intellectual Property Office,28/08/2020,Miscellaneous Expenses General,Patent Directorate,European Patent Office,40299767,"238,379.65",Not Applicable
Department for Business Energy and Industrial Strategy,Intellectual Property Office,28/08/2020,Information Technology,Patent Directorate,European Patent Office,40299883,"127,480.78",Not Applicable
Department for Business Energy and Industrial Strategy,Intellectual Property Office,28/08/2020,Staff Costs,People Places & Serv Directorate,Pluralsight,INV08836370,"3,935.78",Not Applicable
Department for Business Energy and Industrial Strategy,Intellectual Property Office,10/08/2020,Supporting UK Business,Innovation Directorate,Forresters clear direction,KBO/5810766,"2,500.00",Not Applicable
Department for Business Energy and Industrial Strategy,Intellectual Property Office,06/08/2020,Supporting UK Business,Innovation Directorate,Forresters clear direction,KBO/5810768,"2,500.00",Not Applicable
Department for Business Energy and Industrial Strategy,Intellectual Property Office,21/08/2020,Staff Costs,People Places & Serv Directorate,KPMG LLP (CSL),5502131672,"2,708.40",Not Applicable
Department for Business Energy and Industrial Strategy,Intellectual Property Office,27/08/2020,Supporting UK Business,Innovation Directorate,Marriott Harrison LLP,16129,"2,500.00",Not Applicable
Department for Business Energy and Industrial Strategy,Intellectual Property Office,07/08/2020,Information Technology,IT Directorate,Responsiv Solutions Limited,RSL0952,"41,664.00",Not Applicable
Department for Business Energy and Industrial Strategy,Intellectual Property Office,07/08/2020,Miscellaneous Expenses General,Projects,Responsiv Solutions Limited,RSL0953,651,Not Applicable
Department for Business Energy and Industrial Strategy,Intellectual Property Office,04/08/2020,Information Technology,Projects,Responsiv Solutions Limited,RSL0954,"32,100.00",Not Applicable
Department for Business Energy and Industrial Strategy,Intellectual Property Office,07/08/2020,Information Technology,IT Directorate,Responsiv Solutions Limited,RSL0961,"20,181.00",Not Applicable
Department for Business Energy and Industrial Strategy,Intellectual Property Office,26/08/2020,Accommodation,People Places & Serv Directorate,London Borough of Tower Hamlets,65248175-2020,"425,600.00",Not Applicable
Department for Business Energy and Industrial Strategy,Intellectual Property Office,04/08/2020,Information Technology,IT Directorate,Equal Experts UK Limited,INV-7503,"15,000.00",Not Applicable
Department for Business Energy and Industrial Strategy,Intellectual Property Office,04/08/2020,Accommodation,People Places & Serv Directorate,Newport Wafer Fab Limited,SD00002234,"6,975.00",Not Applicable
Department for Business Energy and Industrial Strategy,Intellectual Property Office,04/08/2020,Accommodation,People Places & Serv Directorate,Newport Wafer Fab Limited,SD00002235,"11,500.00",Not Applicable
Department for Business Energy and Industrial Strategy,Intellectual Property Office,05/08/2020,Telecoms,IT Directorate,Colt Technology Services,2.02E+12,"1,860.00",Not Applicable
Department for Business Energy and Industrial Strategy,Intellectual Property Office,04/08/2020,Accommodation,People Places & Serv Directorate,Accelerate Cleaning Solutions Ltd,A110433,"2,985.34",Not Applicable
Department for Business Energy and Industrial Strategy,Intellectual Property Office,27/08/2020,Marketing & Publicity,Innovation Directorate,Innovate NE Limited,INV-0404,"1,140.00",Not Applicable
Department for Business Energy and Industrial Strategy,Intellectual Property Office,04/08/2020,Supporting UK Business,Innovation Directorate,Keltie LLP,137771,"-2,499.89",Not Applicable
Department for Business Energy and Industrial Strategy,Intellectual Property Office,04/08/2020,Supporting UK Business,Innovation Directorate,Keltie LLP,140471,"2,500.00",Not Applicable
Department for Business Energy and Industrial Strategy,Intellectual Property Office,18/08/2020,Information Technology,IT Directorate,8X8 Solutions,2743946,"1,994.87",Not Applicable
Department for Business Energy and Industrial Strategy,Intellectual Property Office,14/08/2020,Accommodation,People Places & Serv Directorate,Todd Research Ltd,4072,"3,412.80",Not Applicable
Department for Business Energy and Industrial Strategy,Intellectual Property Office,21/08/2020,Telecoms,IT Directorate,Gamma Telecom Ltd,GA1555442,"2,051.20",Not Applicable
Department for Business Energy and Industrial Strategy,Intellectual Property Office,20/08/2020,Staff Costs,People Places & Serv Directorate,People Untapped Limited,INV-1108,"2,640.00",Not Applicable
Department for Business Energy and Industrial Strategy,Intellectual Property Office,26/08/2020,Office Machinery,IT Directorate,Kyocera Document Solutions UK Limited,1206637,"12,772.88",Not Applicable
Department for Business Energy and Industrial Strategy,Intellectual Property Office,04/08/2020,Supporting UK Business,Copyright and Enforcement Directorate,Gavin Terry Consulting,0720-190,"1,000.00",Not Applicable
Department for Business Energy and Industrial Strategy,Intellectual Property Office,03/08/2020,Pay Costs,Patent Directorate,Alexander Mann Solutions Limited,2192317,"1,351.54",Not Applicable
Department for Business Energy and Industrial Strategy,Intellectual Property Office,03/08/2020,Pay Costs,IT Directorate,Alexander Mann Solutions Limited,2192318,750.6,Not Applicable
Department for Business Energy and Industrial Strategy,Intellectual Property Office,04/08/2020,Pay Costs,IT Directorate,Alexander Mann Solutions Limited,2192319,"12,318.72",Not Applicable
Department for Business Energy and Industrial Strategy,Intellectual Property Office,03/08/2020,Pay Costs,IT Directorate,Alexander Mann Solutions Limited,2192320,"3,634.49",Not Applicable
Department for Business Energy and Industrial Strategy,Intellectual Property Office,03/08/2020,Pay Costs,Patent Directorate,Alexander Mann Solutions Limited,2192321,"1,214.56",Not Applicable
Department for Business Energy and Industrial Strategy,Intellectual Property Office,03/08/2020,Pay Costs,Patent Directorate,Alexander Mann Solutions Limited,2192322,675.77,Not Applicable
Department for Business Energy and Industrial Strategy,Intellectual Property Office,03/08/2020,Pay Costs,Patent Directorate,Alexander Mann Solutions Limited,2192323,675.77,Not Applicable
Department for Business Energy and Industrial Strategy,Intellectual Property Office,04/08/2020,Pay Costs,IT Directorate,Alexander Mann Solutions Limited,2192324,"2,616.43",Not Applicable
Department for Business Energy and Industrial Strategy,Intellectual Property Office,03/08/2020,Pay Costs,Patent Directorate,Alexander Mann Solutions Limited,2192325,684.9,Not Applicable
Department for Business Energy and Industrial Strategy,Intellectual Property Office,03/08/2020,Pay Costs,Patent Directorate,Alexander Mann Solutions Limited,2192326,547.92,Not Applicable
Department for Business Energy and Industrial Strategy,Intellectual Property Office,03/08/2020,Pay Costs,Patent Directorate,Alexander Mann Solutions Limited,2192327,707.74,Not Applicable
Department for Business Energy and Industrial Strategy,Intellectual Property Office,03/08/2020,Pay Costs,Patent Directorate,Alexander Mann Solutions Limited,2192328,625.02,Not Applicable
Department for Business Energy and Industrial Strategy,Intellectual Property Office,03/08/2020,Pay Costs,Projects,Alexander Mann Solutions Limited,2192329,"2,463.70",Not Applicable
Department for Business Energy and Industrial Strategy,Intellectual Property Office,03/08/2020,Pay Costs,Patent Directorate,Alexander Mann Solutions Limited,2192330,684.9,Not Applicable
Department for Business Energy and Industrial Strategy,Intellectual Property Office,03/08/2020,Pay Costs,IT Directorate,Alexander Mann Solutions Limited,2192331,"2,730.41",Not Applicable
Department for Business Energy and Industrial Strategy,Intellectual Property Office,03/08/2020,Pay Costs,IT Directorate,Alexander Mann Solutions Limited,2192332,"2,687.21",Not Applicable
Department for Business Energy and Industrial Strategy,Intellectual Property Office,03/08/2020,Pay Costs,Innovation Directorate,Alexander Mann Solutions Limited,2192333,575.32,Not Applicable
Department for Business Energy and Industrial Strategy,Intellectual Property Office,03/08/2020,Pay Costs,IT Directorate,Alexander Mann Solutions Limited,2192334,"3,866.59",Not Applicable
Department for Business Energy and Industrial Strategy,Intellectual Property Office,03/08/2020,Pay Costs,Finance Directorate,Alexander Mann Solutions Limited,2192335,"1,741.63",Not Applicable
Department for Business Energy and Industrial Strategy,Intellectual Property Office,05/08/2020,Pay Costs,Finance Directorate,Alexander Mann Solutions Limited,2192336,730.56,Not Applicable
Department for Business Energy and Industrial Strategy,Intellectual Property Office,03/08/2020,Pay Costs,IT Directorate,Alexander Mann Solutions Limited,2192337,"2,910.60",Not Applicable
Department for Business Energy and Industrial Strategy,Intellectual Property Office,03/08/2020,Pay Costs,Projects,Alexander Mann Solutions Limited,2192338,"5,744.77",Not Applicable
Department for Business Energy and Industrial Strategy,Intellectual Property Office,04/08/2020,Pay Costs,Patent Directorate,Alexander Mann Solutions Limited,2192341,630.55,Not Applicable
Department for Business Energy and Industrial Strategy,Intellectual Property Office,03/08/2020,Pay Costs,Patent Directorate,Alexander Mann Solutions Limited,2192342,684.9,Not Applicable
Department for Business Energy and Industrial Strategy,Intellectual Property Office,03/08/2020,Pay Costs,Patent Directorate,Alexander Mann Solutions Limited,2192343,958.86,Not Applicable
Department for Business Energy and Industrial Strategy,Intellectual Property Office,03/08/2020,Pay Costs,IT Directorate,Alexander Mann Solutions Limited,2192344,"1,196.76",Not Applicable
Department for Business Energy and Industrial Strategy,Intellectual Property Office,03/08/2020,Other FA at Cost,IT Directorate,Alexander Mann Solutions Limited,2192345,"3,402.32",Not Applicable
Department for Business Energy and Industrial Strategy,Intellectual Property Office,10/08/2020,Pay Costs,Patent Directorate,Alexander Mann Solutions Limited,2194067,675.77,Not Applicable
Department for Business Energy and Industrial Strategy,Intellectual Property Office,10/08/2020,Pay Costs,Patent Directorate,Alexander Mann Solutions Limited,2194068,675.77,Not Applicable
Department for Business Energy and Industrial Strategy,Intellectual Property Office,10/08/2020,Pay Costs,Patent Directorate,Alexander Mann Solutions Limited,2194069,689.47,Not Applicable
Department for Business Energy and Industrial Strategy,Intellectual Property Office,10/08/2020,Pay Costs,Patent Directorate,Alexander Mann Solutions Limited,2194070,"1,246.51",Not Applicable
Department for Business Energy and Industrial Strategy,Intellectual Property Office,11/08/2020,Pay Costs,Patent Directorate,Alexander Mann Solutions Limited,2194071,"1,486.55",Not Applicable
Department for Business Energy and Industrial Strategy,Intellectual Property Office,10/08/2020,Pay Costs,Patent Directorate,Alexander Mann Solutions Limited,2194072,"1,246.51",Not Applicable
Department for Business Energy and Industrial Strategy,Intellectual Property Office,10/08/2020,Pay Costs,IT Directorate,Alexander Mann Solutions Limited,2194073,825.66,Not Applicable
Department for Business Energy and Industrial Strategy,Intellectual Property Office,11/08/2020,Pay Costs,IT Directorate,Alexander Mann Solutions Limited,2194074,"8,578.93",Not Applicable
Department for Business Energy and Industrial Strategy,Intellectual Property Office,10/08/2020,Pay Costs,IT Directorate,Alexander Mann Solutions Limited,2194075,"3,448.10",Not Applicable
Department for Business Energy and Industrial Strategy,Intellectual Property Office,10/08/2020,Pay Costs,Patent Directorate,Alexander Mann Solutions Limited,2194076,538.79,Not Applicable
Department for Business Energy and Industrial Strategy,Intellectual Property Office,10/08/2020,Pay Costs,Patent Directorate,Alexander Mann Solutions Limited,2194077,675.77,Not Applicable
Department for Business Energy and Industrial Strategy,Intellectual Property Office,10/08/2020,Pay Costs,Patent Directorate,Alexander Mann Solutions Limited,2194078,547.92,Not Applicable
Department for Business Energy and Industrial Strategy,Intellectual Property Office,11/08/2020,Pay Costs,IT Directorate,Alexander Mann Solutions Limited,2194079,"2,569.84",Not Applicable
Department for Business Energy and Industrial Strategy,Intellectual Property Office,10/08/2020,Pay Costs,Patent Directorate,Alexander Mann Solutions Limited,2194080,675.77,Not Applicable
Department for Business Energy and Industrial Strategy,Intellectual Property Office,11/08/2020,Pay Costs,IT Directorate,Alexander Mann Solutions Limited,2194081,"16,994.28",Not Applicable
Department for Business Energy and Industrial Strategy,Intellectual Property Office,10/08/2020,Pay Costs,Patent Directorate,Alexander Mann Solutions Limited,2194082,605.11,Not Applicable
Department for Business Energy and Industrial Strategy,Intellectual Property Office,10/08/2020,Pay Costs,Projects,Alexander Mann Solutions Limited,2194083,"2,463.70",Not Applicable
Department for Business Energy and Industrial Strategy,Intellectual Property Office,10/08/2020,Pay Costs,Patent Directorate,Alexander Mann Solutions Limited,2194084,684.9,Not Applicable
Department for Business Energy and Industrial Strategy,Intellectual Property Office,10/08/2020,Pay Costs,IT Directorate,Alexander Mann Solutions Limited,2194085,"2,730.41",Not Applicable
Department for Business Energy and Industrial Strategy,Intellectual Property Office,10/08/2020,Pay Costs,IT Directorate,Alexander Mann Solutions Limited,2194086,"2,354.84",Not Applicable
Department for Business Energy and Industrial Strategy,Intellectual Property Office,10/08/2020,Pay Costs,Innovation Directorate,Alexander Mann Solutions Limited,2194087,570.76,Not Applicable
Department for Business Energy and Industrial Strategy,Intellectual Property Office,10/08/2020,Pay Costs,IT Directorate,Alexander Mann Solutions Limited,2194088,"3,706.74",Not Applicable
Department for Business Energy and Industrial Strategy,Intellectual Property Office,11/08/2020,Pay Costs,Finance Directorate,Alexander Mann Solutions Limited,2194089,"1,527.06",Not Applicable
Department for Business Energy and Industrial Strategy,Intellectual Property Office,11/08/2020,Pay Costs,Finance Directorate,Alexander Mann Solutions Limited,2194090,730.56,Not Applicable
Department for Business Energy and Industrial Strategy,Intellectual Property Office,10/08/2020,Pay Costs,Projects,Alexander Mann Solutions Limited,2194091,"1,203.29",Not Applicable
Department for Business Energy and Industrial Strategy,Intellectual Property Office,10/08/2020,Pay Costs,Patent Directorate,Alexander Mann Solutions Limited,2194094,602.95,Not Applicable
Department for Business Energy and Industrial Strategy,Intellectual Property Office,14/08/2020,Pay Costs,IT Directorate,Alexander Mann Solutions Limited,2194095,"14,331.70",Not Applicable
Department for Business Energy and Industrial Strategy,Intellectual Property Office,10/08/2020,Pay Costs,Patent Directorate,Alexander Mann Solutions Limited,2194096,684.9,Not Applicable
Department for Business Energy and Industrial Strategy,Intellectual Property Office,10/08/2020,Pay Costs,Patent Directorate,Alexander Mann Solutions Limited,2194097,547.92,Not Applicable
Department for Business Energy and Industrial Strategy,Intellectual Property Office,10/08/2020,Pay Costs,IT Directorate,Alexander Mann Solutions Limited,2194098,775.62,Not Applicable
Department for Business Energy and Industrial Strategy,Intellectual Property Office,10/08/2020,Other FA at Cost,IT Directorate,Alexander Mann Solutions Limited,2194099,"1,890.18",Not Applicable
Department for Business Energy and Industrial Strategy,Intellectual Property Office,14/08/2020,Pay Costs,Patent Directorate,Alexander Mann Solutions Limited,2195953,675.77,Not Applicable
Department for Business Energy and Industrial Strategy,Intellectual Property Office,17/08/2020,Pay Costs,Patent Directorate,Alexander Mann Solutions Limited,2195954,725.62,Not Applicable
Department for Business Energy and Industrial Strategy,Intellectual Property Office,14/08/2020,Pay Costs,Patent Directorate,Alexander Mann Solutions Limited,2195955,698.6,Not Applicable
Department for Business Energy and Industrial Strategy,Intellectual Property Office,14/08/2020,Pay Costs,IT Directorate,Alexander Mann Solutions Limited,2195956,825.66,Not Applicable
Department for Business Energy and Industrial Strategy,Intellectual Property Office,14/08/2020,Pay Costs,IT Directorate,Alexander Mann Solutions Limited,2195957,"3,079.68",Not Applicable
Department for Business Energy and Industrial Strategy,Intellectual Property Office,14/08/2020,Pay Costs,IT Directorate,Alexander Mann Solutions Limited,2195958,"2,784.10",Not Applicable
Department for Business Energy and Industrial Strategy,Intellectual Property Office,14/08/2020,Pay Costs,IT Directorate,Alexander Mann Solutions Limited,2195959,"3,448.10",Not Applicable
Department for Business Energy and Industrial Strategy,Intellectual Property Office,14/08/2020,Pay Costs,Patent Directorate,Alexander Mann Solutions Limited,2195960,675.77,Not Applicable
Department for Business Energy and Industrial Strategy,Intellectual Property Office,14/08/2020,Pay Costs,Patent Directorate,Alexander Mann Solutions Limited,2195961,675.77,Not Applicable
Department for Business Energy and Industrial Strategy,Intellectual Property Office,14/08/2020,Pay Costs,Patent Directorate,Alexander Mann Solutions Limited,2195962,675.77,Not Applicable
Department for Business Energy and Industrial Strategy,Intellectual Property Office,14/08/2020,Pay Costs,Patent Directorate,Alexander Mann Solutions Limited,2195963,703.16,Not Applicable
Department for Business Energy and Industrial Strategy,Intellectual Property Office,14/08/2020,Pay Costs,Patent Directorate,Alexander Mann Solutions Limited,2195964,605.11,Not Applicable
Department for Business Energy and Industrial Strategy,Intellectual Property Office,14/08/2020,Pay Costs,Innovation Directorate,Alexander Mann Solutions Limited,2195965,547.92,Not Applicable
Department for Business Energy and Industrial Strategy,Intellectual Property Office,14/08/2020,Pay Costs,Finance Directorate,Alexander Mann Solutions Limited,2195966,"1,402.49",Not Applicable
Department for Business Energy and Industrial Strategy,Intellectual Property Office,14/08/2020,Pay Costs,Finance Directorate,Alexander Mann Solutions Limited,2195967,730.56,Not Applicable
Department for Business Energy and Industrial Strategy,Intellectual Property Office,17/08/2020,Pay Costs,IT Directorate,Alexander Mann Solutions Limited,2195968,"5,860.80",Not Applicable
Department for Business Energy and Industrial Strategy,Intellectual Property Office,14/08/2020,Pay Costs,Projects,Alexander Mann Solutions Limited,2195969,"2,878.21",Not Applicable
Department for Business Energy and Industrial Strategy,Intellectual Property Office,14/08/2020,Pay Costs,Patent Directorate,Alexander Mann Solutions Limited,2195972,602.95,Not Applicable
Department for Business Energy and Industrial Strategy,Intellectual Property Office,17/08/2020,Pay Costs,IT Directorate,Alexander Mann Solutions Limited,2195973,"4,281.02",Not Applicable
Department for Business Energy and Industrial Strategy,Intellectual Property Office,14/08/2020,Pay Costs,Patent Directorate,Alexander Mann Solutions Limited,2195974,675.77,Not Applicable
Department for Business Energy and Industrial Strategy,Intellectual Property Office,14/08/2020,Pay Costs,Patent Directorate,Alexander Mann Solutions Limited,2195975,634.68,Not Applicable
Department for Business Energy and Industrial Strategy,Intellectual Property Office,14/08/2020,Pay Costs,IT Directorate,Alexander Mann Solutions Limited,2195976,770.62,Not Applicable
Department for Business Energy and Industrial Strategy,Intellectual Property Office,14/08/2020,Other FA at Cost,IT Directorate,Alexander Mann Solutions Limited,2195977,"1,890.18",Not Applicable
Department for Business Energy and Industrial Strategy,Intellectual Property Office,21/08/2020,Pay Costs,Patent Directorate,Alexander Mann Solutions Limited,2197751,675.77,Not Applicable
Department for Business Energy and Industrial Strategy,Intellectual Property Office,21/08/2020,Pay Costs,Patent Directorate,Alexander Mann Solutions Limited,2197752,680.34,Not Applicable
Department for Business Energy and Industrial Strategy,Intellectual Property Office,21/08/2020,Pay Costs,Patent Directorate,Alexander Mann Solutions Limited,2197753,671.21,Not Applicable
Department for Business Energy and Industrial Strategy,Intellectual Property Office,21/08/2020,Pay Costs,Patent Directorate,Alexander Mann Solutions Limited,2197754,623.26,Not Applicable
Department for Business Energy and Industrial Strategy,Intellectual Property Office,24/08/2020,Pay Costs,Patent Directorate,Alexander Mann Solutions Limited,2197755,"1,121.86",Not Applicable
Department for Business Energy and Industrial Strategy,Intellectual Property Office,24/08/2020,Pay Costs,Patent Directorate,Alexander Mann Solutions Limited,2197756,"1,246.51",Not Applicable
Department for Business Energy and Industrial Strategy,Intellectual Property Office,21/08/2020,Pay Costs,IT Directorate,Alexander Mann Solutions Limited,2197757,790.63,Not Applicable
Department for Business Energy and Industrial Strategy,Intellectual Property Office,24/08/2020,Pay Costs,IT Directorate,Alexander Mann Solutions Limited,2197758,"3,682.85",Not Applicable
Department for Business Energy and Industrial Strategy,Intellectual Property Office,24/08/2020,Pay Costs,IT Directorate,Alexander Mann Solutions Limited,2197759,"3,079.68",Not Applicable
Department for Business Energy and Industrial Strategy,Intellectual Property Office,21/08/2020,Pay Costs,IT Directorate,Alexander Mann Solutions Limited,2197760,"3,382.87",Not Applicable
Department for Business Energy and Industrial Strategy,Intellectual Property Office,21/08/2020,Pay Costs,Patent Directorate,Alexander Mann Solutions Limited,2197761,675.77,Not Applicable
Department for Business Energy and Industrial Strategy,Intellectual Property Office,21/08/2020,Pay Costs,Patent Directorate,Alexander Mann Solutions Limited,2197762,675.77,Not Applicable
Department for Business Energy and Industrial Strategy,Intellectual Property Office,21/08/2020,Pay Costs,Patent Directorate,Alexander Mann Solutions Limited,2197763,675.77,Not Applicable
Department for Business Energy and Industrial Strategy,Intellectual Property Office,21/08/2020,Pay Costs,Patent Directorate,Alexander Mann Solutions Limited,2197764,694.03,Not Applicable
Department for Business Energy and Industrial Strategy,Intellectual Property Office,21/08/2020,Pay Costs,Patent Directorate,Alexander Mann Solutions Limited,2197765,629,Not Applicable
Department for Business Energy and Industrial Strategy,Intellectual Property Office,21/08/2020,Pay Costs,Projects,Alexander Mann Solutions Limited,2197766,"3,900.00",Not Applicable
Department for Business Energy and Industrial Strategy,Intellectual Property Office,21/08/2020,Pay Costs,IT Directorate,Alexander Mann Solutions Limited,2197768,"1,223.98",Not Applicable
Department for Business Energy and Industrial Strategy,Intellectual Property Office,21/08/2020,Pay Costs,IT Directorate,Alexander Mann Solutions Limited,2197769,"2,687.21",Not Applicable
Department for Business Energy and Industrial Strategy,Intellectual Property Office,21/08/2020,Pay Costs,Innovation Directorate,Alexander Mann Solutions Limited,2197770,675.77,Not Applicable
Department for Business Energy and Industrial Strategy,Intellectual Property Office,21/08/2020,Pay Costs,IT Directorate,Alexander Mann Solutions Limited,2197771,"3,846.61",Not Applicable
Department for Business Energy and Industrial Strategy,Intellectual Property Office,21/08/2020,Pay Costs,Finance Directorate,Alexander Mann Solutions Limited,2197772,"1,750.57",Not Applicable
Department for Business Energy and Industrial Strategy,Intellectual Property Office,21/08/2020,Pay Costs,Projects,Alexander Mann Solutions Limited,2197773,"3,304.12",Not Applicable
Department for Business Energy and Industrial Strategy,Intellectual Property Office,21/08/2020,Pay Costs,Patent Directorate,Alexander Mann Solutions Limited,2197775,602.95,Not Applicable
Department for Business Energy and Industrial Strategy,Intellectual Property Office,21/08/2020,Pay Costs,IT Directorate,Alexander Mann Solutions Limited,2197776,"4,426.97",Not Applicable
Department for Business Energy and Industrial Strategy,Intellectual Property Office,21/08/2020,Pay Costs,Patent Directorate,Alexander Mann Solutions Limited,2197777,716.87,Not Applicable
Department for Business Energy and Industrial Strategy,Intellectual Property Office,21/08/2020,Pay Costs,IT Directorate,Alexander Mann Solutions Limited,2197778,600.48,Not Applicable
Department for Business Energy and Industrial Strategy,Intellectual Property Office,21/08/2020,Other FA at Cost,IT Directorate,Alexander Mann Solutions Limited,2197779,"1,890.18",Not Applicable
Department for Business Energy and Industrial Strategy,Intellectual Property Office,28/08/2020,Pay Costs,Patent Directorate,Alexander Mann Solutions Limited,2199579,675.77,Not Applicable
Department for Business Energy and Industrial Strategy,Intellectual Property Office,28/08/2020,Pay Costs,Patent Directorate,Alexander Mann Solutions Limited,2199580,680.34,Not Applicable
Department for Business Energy and Industrial Strategy,Intellectual Property Office,28/08/2020,Pay Costs,Patent Directorate,Alexander Mann Solutions Limited,2199581,623.26,Not Applicable
Department for Business Energy and Industrial Strategy,Intellectual Property Office,28/08/2020,Pay Costs,Patent Directorate,Alexander Mann Solutions Limited,2199582,623.26,Not Applicable
Department for Business Energy and Industrial Strategy,Intellectual Property Office,28/08/2020,Pay Costs,Patent Directorate,Alexander Mann Solutions Limited,2199587,538.79,Not Applicable
Department for Business Energy and Industrial Strategy,Intellectual Property Office,28/08/2020,Pay Costs,Patent Directorate,Alexander Mann Solutions Limited,2199588,675.77,Not Applicable
Department for Business Energy and Industrial Strategy,Intellectual Property Office,28/08/2020,Pay Costs,Patent Directorate,Alexander Mann Solutions Limited,2199590,613.08,Not Applicable
Department for Business Energy and Industrial Strategy,Intellectual Property Office,28/08/2020,Pay Costs,Projects,Alexander Mann Solutions Limited,2199591,"3,510.00",Not Applicable
Department for Business Energy and Industrial Strategy,Intellectual Property Office,28/08/2020,Pay Costs,Patent Directorate,Alexander Mann Solutions Limited,2199592,547.92,Not Applicable
Department for Business Energy and Industrial Strategy,Intellectual Property Office,28/08/2020,Pay Costs,IT Directorate,Alexander Mann Solutions Limited,2199593,"3,483.62",Not Applicable
Department for Business Energy and Industrial Strategy,Intellectual Property Office,28/08/2020,Pay Costs,IT Directorate,Alexander Mann Solutions Limited,2199594,"2,828.64",Not Applicable
Department for Business Energy and Industrial Strategy,Intellectual Property Office,28/08/2020,Pay Costs,Innovation Directorate,Alexander Mann Solutions Limited,2199595,675.77,Not Applicable
Department for Business Energy and Industrial Strategy,Intellectual Property Office,28/08/2020,Pay Costs,IT Directorate,Alexander Mann Solutions Limited,2199598,"5,247.00",Not Applicable
Department for Business Energy and Industrial Strategy,Intellectual Property Office,28/08/2020,Pay Costs,Projects,Alexander Mann Solutions Limited,2199599,"3,364.19",Not Applicable
Department for Business Energy and Industrial Strategy,Intellectual Property Office,28/08/2020,Pay Costs,Patent Directorate,Alexander Mann Solutions Limited,2199601,627.48,Not Applicable
Department for Business Energy and Industrial Strategy,Intellectual Property Office,28/08/2020,Pay Costs,Patent Directorate,Alexander Mann Solutions Limited,2199602,765.91,Not Applicable
Department for Business Energy and Industrial Strategy,Intellectual Property Office,28/08/2020,Pay Costs,Patent Directorate,Alexander Mann Solutions Limited,2199603,675.77,Not Applicable
Department for Business Energy and Industrial Strategy,Intellectual Property Office,28/08/2020,Other FA at Cost,IT Directorate,Alexander Mann Solutions Limited,2199604,"1,890.18",Not Applicable
Department for Business Energy and Industrial Strategy,Intellectual Property Office,28/08/2020,Other FA at Cost,IT Directorate,Alexander Mann Solutions Limited,2199605,"3,150.18",Not Applicable
Department for Business Energy and Industrial Strategy,Intellectual Property Office,28/08/2020,Pay Costs,People Places & Serv Directorate,Alexander Mann Solutions Limited,2199606,541.85,Not Applicable
Department for Business Energy and Industrial Strategy,Intellectual Property Office,28/08/2020,Pay Costs,IT Directorate,Alexander Mann Solutions Limited,2199607,"1,751.81",Not Applicable
Department for Business Energy and Industrial Strategy,Intellectual Property Office,28/08/2020,Pay Costs,Patent Directorate,Alexander Mann Solutions Limited,2199608,602.95,Not Applicable
Department for Business Energy and Industrial Strategy,Intellectual Property Office,28/08/2020,Pay Costs,Patent Directorate,Alexander Mann Solutions Limited,2199609,541.85,Not Applicable
Department for Business Energy and Industrial Strategy,Intellectual Property Office,28/08/2020,Pay Costs,Patent Directorate,Alexander Mann Solutions Limited,2199610,547.92,Not Applicable
Department for Business Energy and Industrial Strategy,Intellectual Property Office,14/08/2020,Pay Costs,IT Directorate,Alexander Mann Solutions Limited,23513,"-6,840.00",Not Applicable
Department for Business Energy and Industrial Strategy,Intellectual Property Office,12/08/2020,Information Technology,People Places & Serv Directorate,Cyberis Limited,INV01630,"1,050.00",Not Applicable
Department for Business Energy and Industrial Strategy,Intellectual Property Office,25/08/2020,Office Stationery,People Places & Serv Directorate,Amazon.Co.Uk,H57720200828dthoapcjr,24.58,Not Applicable
Department for Business Energy and Industrial Strategy,Intellectual Property Office,26/08/2020,Books,Patent Directorate,Amznmktplace,H57720200828tohgadpuo,32.84,Not Applicable
Department for Business Energy and Industrial Strategy,Intellectual Property Office,25/08/2020,Office Stationery,People Places & Serv Directorate,Amznmktplace,H57720200828yviswqllg,17.73,Not Applicable
Department for Business Energy and Industrial Strategy,Intellectual Property Office,24/08/2020,Office Stationery,People Places & Serv Directorate,Amznmktplace Amazon.Co.Uk,H57720200826tknqshzce,13.09,Not Applicable
Department for Business Energy and Industrial Strategy,Intellectual Property Office,21/08/2020,Office Stationery,People Places & Serv Directorate,Hp Inc UK Limited,H57720200825jufcjttwi,25.8,Not Applicable
Department for Business Energy and Industrial Strategy,Intellectual Property Office,20/08/2020,Office Stationery,People Places & Serv Directorate,Healthy Workstations Ltd,H57720200825torfytbiy,37.13,Not Applicable
Department for Business Energy and Industrial Strategy,Intellectual Property Office,20/08/2020,Office Stationery,People Places & Serv Directorate,Screwfix Direct,H57720200822kovxdivep,66.52,Not Applicable
Department for Business Energy and Industrial Strategy,Intellectual Property Office,23/07/2020,Overseas Patent Specifications,Patent Directorate,Cambridge Univeristy Pres,H57720200822kymmzhytr,25,Not Applicable
Department for Business Energy and Industrial Strategy,Intellectual Property Office,20/08/2020,Overseas Patent Specifications,Patent Directorate,The Intellectual Property,H57720200822xmpugsftn,-30,Not Applicable
Department for Business Energy and Industrial Strategy,Intellectual Property Office,19/08/2020,Office Stationery,People Places & Serv Directorate,Shreddingmachines.Couk,H57720200821ddhszepjs,73.08,Not Applicable
Department for Business Energy and Industrial Strategy,Intellectual Property Office,19/08/2020,Office Stationery,People Places & Serv Directorate,Amznmktplace,H57720200821hrvyevwtx,37.48,Not Applicable
Department for Business Energy and Industrial Strategy,Intellectual Property Office,19/08/2020,Office Stationery,People Places & Serv Directorate,Amazon.Co.Uk,H57720200821pgruwwnkf,19.33,Not Applicable
Department for Business Energy and Industrial Strategy,Intellectual Property Office,19/08/2020,Office Stationery,People Places & Serv Directorate,Sq *floral Image Bristol,H57720200821sobpjbvri,88.3,Not Applicable
Department for Business Energy and Industrial Strategy,Intellectual Property Office,19/08/2020,Office Stationery,People Places & Serv Directorate,Amazon.Co.Uk,H57720200821vtvbadxgc,24.08,Not Applicable
Department for Business Energy and Industrial Strategy,Intellectual Property Office,19/08/2020,Office Stationery,People Places & Serv Directorate,Amazon.Co.Uk,H57720200821wodirgooz,19.33,Not Applicable
Department for Business Energy and Industrial Strategy,Intellectual Property Office,18/08/2020,Office Stationery,People Places & Serv Directorate,Screwfix Direct,H57720200820cvvjtpzoo,149.99,Not Applicable
Department for Business Energy and Industrial Strategy,Intellectual Property Office,18/08/2020,Books,Trade Mark Directorate,The Intellectual Property,H57720200820ihwlztgau,-100,Not Applicable
Department for Business Energy and Industrial Strategy,Intellectual Property Office,18/08/2020,Books,Trade Mark Directorate,The Intellectual Property,H57720200820toasrxyve,-50,Not Applicable
Department for Business Energy and Industrial Strategy,Intellectual Property Office,19/08/2020,Overseas Patent Specifications,Patent Directorate,"John Wiley & Sons, Inc",H57720200820vqbtzclkj,38.56,Not Applicable
Department for Business Energy and Industrial Strategy,Intellectual Property Office,17/08/2020,Office Stationery,People Places & Serv Directorate,Amznmktplace,H57720200819berjjkxcx,360,Not Applicable
Department for Business Energy and Industrial Strategy,Intellectual Property Office,17/08/2020,Office Stationery,People Places & Serv Directorate,Screwfix Direct,H57720200819eguxvnxlj,144,Not Applicable
Department for Business Energy and Industrial Strategy,Intellectual Property Office,17/08/2020,Perpetual Licences,IT Directorate,Atlassian,H57720200819fvhvelgio,618.56,Not Applicable
Department for Business Energy and Industrial Strategy,Intellectual Property Office,14/08/2020,Office Stationery,People Places & Serv Directorate,Posturite Ltd,H57720200818hwzyhdomv,76,Not Applicable
Department for Business Energy and Industrial Strategy,Intellectual Property Office,12/08/2020,Office Stationery,People Places & Serv Directorate,Healthy Workstations Ltd,H57720200817udoetsmef,140.4,Not Applicable
Department for Business Energy and Industrial Strategy,Intellectual Property Office,12/08/2020,Books,Copyright and Enforcement Directorate,Amazon.Co.Uk,H57720200814ntjtuuysg,20.85,Not Applicable
Department for Business Energy and Industrial Strategy,Intellectual Property Office,12/08/2020,Career Development Services,Projects,Apm,H57720200814voyqsdywr,138,Not Applicable
Department for Business Energy and Industrial Strategy,Intellectual Property Office,11/08/2020,Office Stationery,People Places & Serv Directorate,Www.Ballicom.Co.Uk,H57720200813dkgyrbnnt,592.55,Not Applicable
Department for Business Energy and Industrial Strategy,Intellectual Property Office,11/08/2020,Network and infrastructure H/W,IT Directorate,Amznmktplace,H57720200813mzcudbvvb,314.93,Not Applicable
Department for Business Energy and Industrial Strategy,Intellectual Property Office,11/08/2020,Office Stationery,People Places & Serv Directorate,Amazon.Co.Uk,H57720200813qgksmqirr,24.45,Not Applicable
Department for Business Energy and Industrial Strategy,Intellectual Property Office,10/08/2020,Office Stationery,People Places & Serv Directorate,Amznmktplace,H57720200812nqlhfwhpl,145.48,Not Applicable
Department for Business Energy and Industrial Strategy,Intellectual Property Office,10/08/2020,Office Stationery,People Places & Serv Directorate,Shreddingmachines.Couk,H57720200812qhpwfjfxh,810.42,Not Applicable
Department for Business Energy and Industrial Strategy,Intellectual Property Office,10/08/2020,Perpetual Licences,IT Directorate,Texthelp,H57720200812txhgowegb,-180,Not Applicable
Department for Business Energy and Industrial Strategy,Intellectual Property Office,07/08/2020,Career Development Services,People Places & Serv Directorate,Www.Cipr.Co.Uk,H57720200811arlznkwum,-120,Not Applicable
Department for Business Energy and Industrial Strategy,Intellectual Property Office,07/08/2020,Overseas Patent Specifications,Patent Directorate,Deepdyve Research,H57720200811bqfgollry,31.66,Not Applicable
Department for Business Energy and Industrial Strategy,Intellectual Property Office,07/08/2020,Perpetual Licences,IT Directorate,Texthelp,H57720200811cviuohnlt,180,Not Applicable
Department for Business Energy and Industrial Strategy,Intellectual Property Office,07/08/2020,Perpetual Licences,IT Directorate,Atlassian,H57720200811gejakybzu,194.71,Not Applicable
Department for Business Energy and Industrial Strategy,Intellectual Property Office,08/08/2020,Office Stationery,People Places & Serv Directorate,Amznmktplace,H57720200811ilcrughgv,30.99,Not Applicable
Department for Business Energy and Industrial Strategy,Intellectual Property Office,08/08/2020,Books,Trade Mark Directorate,The Intellectual Property,H57720200811jseoolhpj,50,Not Applicable
Department for Business Energy and Industrial Strategy,Intellectual Property Office,07/08/2020,Office Furniture,People Places & Serv Directorate,Healthy Workstations Ltd,H57720200811moknhxkie,623.6,Not Applicable
Department for Business Energy and Industrial Strategy,Intellectual Property Office,08/08/2020,Books,Trade Mark Directorate,The Intellectual Property,H57720200811qrhjxraem,100,Not Applicable
Department for Business Energy and Industrial Strategy,Intellectual Property Office,08/08/2020,Overseas Patent Specifications,Patent Directorate,The Intellectual Property,H57720200811vlytgyynn,30,Not Applicable
Department for Business Energy and Industrial Strategy,Intellectual Property Office,06/08/2020,Office Stationery,People Places & Serv Directorate,Shreddingmachines.Couk,H57720200809anxotkswb,69.48,Not Applicable
Department for Business Energy and Industrial Strategy,Intellectual Property Office,06/08/2020,Office Stationery,People Places & Serv Directorate,Shreddingmachines.Couk,H57720200809azrlsfekj,69.48,Not Applicable
Department for Business Energy and Industrial Strategy,Intellectual Property Office,06/08/2020,Office Stationery,People Places & Serv Directorate,Shreddingmachines.Couk,H57720200809dmhhpjplu,69.48,Not Applicable
Department for Business Energy and Industrial Strategy,Intellectual Property Office,06/08/2020,Office Stationery,People Places & Serv Directorate,Amznmktplace,H57720200809eblkbuxuc,37.33,Not Applicable
Department for Business Energy and Industrial Strategy,Intellectual Property Office,06/08/2020,Office Stationery,People Places & Serv Directorate,Getacrylicphotoframes,H57720200809hotnrtwxo,357,Not Applicable
Department for Business Energy and Industrial Strategy,Intellectual Property Office,06/08/2020,Office Stationery,People Places & Serv Directorate,Shreddingmachines.Couk,H57720200809iwfnjnxml,69.48,Not Applicable
Department for Business Energy and Industrial Strategy,Intellectual Property Office,06/08/2020,Office Stationery,People Places & Serv Directorate,Shreddingmachines.Couk,H57720200809ocvhtjhtz,69.48,Not Applicable
Department for Business Energy and Industrial Strategy,Intellectual Property Office,06/08/2020,Office Stationery,People Places & Serv Directorate,Shreddingmachines.Couk,H57720200809qblgrwqis,69.48,Not Applicable
Department for Business Energy and Industrial Strategy,Intellectual Property Office,06/08/2020,Office Stationery,People Places & Serv Directorate,The Ppe Online Shop,H57720200809qldkzplpw,725,Not Applicable
Department for Business Energy and Industrial Strategy,Intellectual Property Office,06/08/2020,Office Stationery,People Places & Serv Directorate,Shreddingmachines.Couk,H57720200809qqthfgfvz,69.48,Not Applicable
Department for Business Energy and Industrial Strategy,Intellectual Property Office,06/08/2020,Office Stationery,People Places & Serv Directorate,Shreddingmachines.Couk,H57720200809sigmqhqcc,69.48,Not Applicable
Department for Business Energy and Industrial Strategy,Intellectual Property Office,06/08/2020,Office Stationery,People Places & Serv Directorate,Shreddingmachines.Couk,H57720200809vkilucegg,69.48,Not Applicable
Department for Business Energy and Industrial Strategy,Intellectual Property Office,06/08/2020,Office Stationery,People Places & Serv Directorate,Shreddingmachines.Couk,H57720200809vmfdtojrf,69.48,Not Applicable
Department for Business Energy and Industrial Strategy,Intellectual Property Office,06/08/2020,Office Stationery,People Places & Serv Directorate,Shreddingmachines.Couk,H57720200809ylthtfhpc,69.48,Not Applicable
Department for Business Energy and Industrial Strategy,Intellectual Property Office,06/08/2020,Office Stationery,People Places & Serv Directorate,Shreddingmachines.Couk,H57720200809ytxxmfyjo,69.48,Not Applicable
Department for Business Energy and Industrial Strategy,Intellectual Property Office,05/08/2020,Overseas Patent Specifications,Patent Directorate,The Intellectual Property,H57720200807byxnaqqwl,-30,Not Applicable
Department for Business Energy and Industrial Strategy,Intellectual Property Office,05/08/2020,Books,Trade Mark Directorate,The Intellectual Property,H57720200807giraflknx,-170,Not Applicable
Department for Business Energy and Industrial Strategy,Intellectual Property Office,05/08/2020,Books,Trade Mark Directorate,The Intellectual Property,H57720200807shjhtjmpd,-170,Not Applicable
Department for Business Energy and Industrial Strategy,Intellectual Property Office,05/08/2020,Books,Trade Mark Directorate,The Intellectual Property,H57720200807wqnaevdmo,-50,Not Applicable
Department for Business Energy and Industrial Strategy,Intellectual Property Office,04/08/2020,Office Stationery,People Places & Serv Directorate,South Wales Suppliers,H57720200806fmsdsomxp,91.2,Not Applicable
Department for Business Energy and Industrial Strategy,Intellectual Property Office,04/08/2020,Office Stationery,People Places & Serv Directorate,Amazon.Co.Uk,H57720200806iwjxkihxd,89.27,Not Applicable
Department for Business Energy and Industrial Strategy,Intellectual Property Office,04/08/2020,Office Stationery,People Places & Serv Directorate,Screwfix Direct,H57720200806pukcctufy,58.95,Not Applicable
Department for Business Energy and Industrial Strategy,Intellectual Property Office,31/07/2020,Office Stationery,People Places & Serv Directorate,Amznmktplace,H57720200804ccxxhrsnk,21.99,Not Applicable
Department for Business Energy and Industrial Strategy,Intellectual Property Office,31/07/2020,Overseas Patent Specifications,Patent Directorate,Association For Computing,H57720200804dbkpwsyit,11.82,Not Applicable
Department for Business Energy and Industrial Strategy,Intellectual Property Office,31/07/2020,Overseas Patent Specifications,Patent Directorate,The Intellectual Property,H57720200804jjzipzvym,-50,Not Applicable
Department for Business Energy and Industrial Strategy,Intellectual Property Office,31/07/2020,Office Stationery,People Places & Serv Directorate,Amznmktplace,H57720200804swhqmiukk,17.94,Not Applicable
Department for Business Energy and Industrial Strategy,Intellectual Property Office,31/07/2020,Overseas Patent Specifications,Patent Directorate,The Intellectual Property,H57720200804vfsvmltre,-170,Not Applicable
Department for Business Energy and Industrial Strategy,Intellectual Property Office,30/07/2020,Office Stationery,People Places & Serv Directorate,Amznmktplace,H57720200802ekpucgvrx,47.46,Not Applicable
Department for Business Energy and Industrial Strategy,Intellectual Property Office,29/07/2020,Office Stationery,Finance Directorate,Www.Ukpos.Com,H57720200731dpqetqdwz,43.56,Not Applicable
Department for Business Energy and Industrial Strategy,Intellectual Property Office,29/07/2020,Overseas Patent Specifications,Patent Directorate,Association For Computing,H57720200731iunrgyxgn,11.97,Not Applicable
Department for Business Energy and Industrial Strategy,Intellectual Property Office,29/07/2020,Overseas Patent Specifications,Patent Directorate,Elsevier,H57720200731mfluxvtvy,30.15,Not Applicable
Department for Business Energy and Industrial Strategy,Intellectual Property Office,30/07/2020,Overseas Patent Specifications,Patent Directorate,"John Wiley & Sons, Inc",H57720200731zrdejjoey,33.49,Not Applicable
Department for Business Energy and Industrial Strategy,Intellectual Property Office,28/07/2020,Entertainment,People Places & Serv Directorate,Dominos Pizza UK & Irelan,H57720200730vvdbcippc,113.04,Not Applicable
Department for Business Energy and Industrial Strategy,Intellectual Property Office,28/07/2020,Network and infrastructure H/W,International Policy Directorate,Amazon.Co.Uk,H57720200730zvpeflnkn,5,Not Applicable
Department for Business Energy and Industrial Strategy,Intellectual Property Office,28/07/2020,Overseas Patent Specifications,Patent Directorate,"John Wiley & Sons, Inc",H57720200729udktfwhwn,39.51,Not Applicable
Department for Business Energy and Industrial Strategy,Intellectual Property Office,27/07/2020,Books Newspaper Pub(central),Patent Directorate,Paypal,H57720200729wyfudnhhh,55,Not Applicable
